[Event "III Duchamp Open 2019"]
[Site "Rio de Janeiro"]
[Date "2019.12.10"]
[Round "5.15"]
[White "Pirola, Claudionor Alcides L"]
[Black "Fernandez, Maria Florencia"]
[Result "0-1"]
[ECO "B24"]
[WhiteElo "2106"]
[BlackElo "2241"]
[Annotator "RC"]
[PlyCount "74"]
[EventDate "2019.12.07"]
[EventType "swiss"]
[EventCountry "BRA"]
[SourceTitle "playchess.com"]
[Source "ChessBase"]
[SourceQuality "1"]
[TimeControl "40/5400+30:1800+30"]

1. e4 {[%emt 0:00:00]} c5 {[%emt 0:02:48]} 2. Nc3 {[%emt 0:00:00]} Nc6 {[%emt 0:00:06]} 3. Nf3 {[%emt 0:00:04]} e5 {[%emt 0:00:09]} 4. Bc4 {[%emt 0:00:55]} d6 {[%emt 0:00:53]} 5. d3 {[%emt 0:03:00]} Be7 {[%emt 0:00:04]} 6. a3 {[%emt 0:02:48]} Nf6 {[%emt 0:00:29]} 7. h3 {[%emt 0:00:17]} O-O {[%emt 0:00:51]} 8. O-O {[%emt 0:01:10]} Nd7 {[%emt 0:01:48]} 9. Nd5 {[%emt 0:02:51]} Nb6 {[%emt 0:07:14]} 10. Ba2 {[%emt 0:11:47]} Be6 11. c3 Bxd5 {[%emt 0:20:00]} 12. exd5 {[%emt 0:03:01]} Nb8 {[%emt 0:00:03]} 13. b4 {[%emt 0:12:46]} N8d7 {[%emt 0:02:17]} 14. bxc5 {[%emt 0:04:26]} Nxc5 {[%emt 0:01:23]} 15. Be3 {[%emt 0:07:52]} Rc8 {[%emt 0:08:49]} 16. Qd2 {[%emt 0:01:54]} Nba4 {[%emt 0:03:26]} 17. c4 {[%emt 0:11:01]} Bf6 {[%emt 0:17:37]} 18. d4 {[%emt 0:07:25]} exd4 {[%emt 0:01:53]} 19. Bxd4 {[%emt 0:00:29]} Ne4 {[%emt 0:03:31]} 20. Qf4 {[%emt 0:03:28]} Nac3 {[%emt 0:05:46]} 21. Rfe1 {[%emt 0:02:34]} Nxa2 {[%emt 0:04:47]} 22. Qxe4 {[%emt 0:02:22]} Nc3 {[%emt 0:01:33]} 23. Qe3 {[%emt 0:03:36]} Na4 {[%emt 0:00:56]} 24. Bxf6 {[%emt 0:00:22]} Qxf6 {[%emt 0:00:02]} 25. Qxa7 {[%emt 0:00:00]} Nc5 {[%emt 0:08:14]} 26. Qb6 {[%emt 0:00:17]} Nd3 {[%emt 0:00:10]} 27. Red1 {[%emt 0:01:58]} Nf4 {[%emt 0:02:01]} 28. Qb3 {[%emt 0:03:37]} Qg6 {[%emt 0:01:45]} 29. Ne1 {[%emt 0:02:59]} Rfe8 {[%emt 0:00:33]} 30. Qf3 {[%emt 0:00:54]} Rxc4 {[%emt 0:00:24]} 31. Nd3 {[%emt 0:01:05]} Ne2+ {[%emt 0:01:40]} 32. Kf1 {[%emt 0:01:21]} Rc3 {[%emt 0:02:58]} 33. Rd2 {[%emt 0:02:57]} Nd4 {[%emt 0:00:21]} 34. Qd1 {[%emt 0:04:48]} Nb3 {[%emt 0:00:22]} 35. Re2 {[%emt 0:00:15]} Rxe2 {[%emt 0:00:14]} 36. Nf4 {[%emt 0:00:16]} Rxf2+ {[%emt 0:01:49]} 37. Kxf2 {[%emt 0:02:15]} Qg3+ {[%emt 0:00:05]} 0-1

[Event "III Duchamp Open 2019"]
[Site "Rio de Janeiro"]
[Date "2019.12.11"]
[Round "6.1"]
[White "Di Berardino, Diego Rafael"]
[Black "Martinez Alcantara, Jose Eduardo"]
[Result "0-1"]
[ECO "A35"]
[WhiteElo "2489"]
[BlackElo "2592"]
[Annotator "ChessBase"]
[PlyCount "74"]
[EventDate "2019.12.07"]
[EventType "swiss"]
[EventCountry "BRA"]
[SourceTitle "playchess.com"]
[Source "ChessBase"]
[SourceQuality "1"]
[TimeControl "40/5400+30:1800+30"]

1. Nf3 {[%emt 0:00:19]} c5 {[%emt 0:02:18]} 2. c4 {[%emt 0:00:31]} Nf6 {[%emt 0:00:05]} 3. Nc3 {[%emt 0:00:18]} Nc6 {[%emt 0:01:09]} 4. e3 {[%emt 0:01:30]} d5 {[%emt 0:03:13]} 5. cxd5 {[%emt 0:00:04]} Nxd5 {[%emt 0:00:04]} 6. d4 {[%emt 0:01:39]} e6 {[%emt 0:05:31]} 7. Bc4 {[%emt 0:04:07]} cxd4 {[%emt 0:02:53]} 8. exd4 {[%emt 0:00:17]} Be7 {[%emt 0:00:02]} 9. O-O {[%emt 0:00:19]} O-O {[%emt 0:00:05]} 10. Re1 {[%emt 0:00:33]} a6 {[%emt 0:00:28]} 11. Bb3 {[%emt 0:02:07]} b5 {[%emt 0:12:05]} 12. Ne4 {[%emt 0:13:06]} Bb7 {[%emt 0:03:39]} 13. Bg5 {[%emt 0:03:53]} Rc8 {[%emt 0:07:30]} 14. Rc1 {[%emt 0:11:52]} Rc7 {[%emt 0:01:53]} 15. Bxd5 {[%emt 0:18:47]} Qxd5 {[%emt 0:06:31]} 16. Bxe7 {[%emt 0:00:06]} Rxe7 {[%emt 0:00:05]} 17. Rc5 {[%emt 0:02:28]} Qd8 {[%emt 0:03:42]} 18. Neg5 {[%emt 0:01:34]} h6 {[%emt 0:06:35]} 19. d5 {[%emt 0:12:46]} exd5 {[%emt 0:01:59]} 20. Rxd5 {[%emt 0:00:24]} Rxe1+ {[%emt 0:00:08]} 21. Nxe1 {[%emt 0:00:03]} Qf6 {[%emt 0:05:48]} 22. Ne4 {[%emt 0:01:11]} Qxb2 {[%emt 0:00:55]} 23. Nd3 {[%emt 0:01:14]} Qxa2 {[%emt 0:02:15]} 24. Ndc5 {[%emt 0:00:27]} Bc8 {[%emt 0:00:38]} 25. h3 {[%emt 0:00:05]} Qa5 {[%emt 0:04:03]} 26. Rd6 {[%emt 0:07:38]} Ne5 {[%emt 0:03:51]} 27. Qd4 {[%emt 0:04:52]} Re8 {[%emt 0:04:52]} 28. f4 {[%emt 0:08:33]} Ng6 {[%emt 0:00:43]} 29. Ng3 {[%emt 0:00:14]} Nh4 {[%emt 0:02:30]} 30. Qd5 {[%emt 0:02:43]} Qc3 {[%emt 0:05:10]} 31. Kh2 {[%emt 0:00:04]} Qc4 {[%emt 0:08:21]} 32. Qc6 {[%emt 0:01:10]} Rf8 {[%emt 0:01:06]} 33. Nge4 {[%emt 0:00:46]} Ng6 {[%emt 0:01:13]} 34. Qc7 {[%emt 0:00:39]} Bf5 {[%emt 0:01:23]} 35. Ng3 {[%emt 0:00:03]} Qxf4 {[%emt 0:00:40]} 36. Nxa6 {[%emt 0:00:07]} Bxh3 {[%emt 0:02:15]} 37. Rd3 {[%emt 0:01:13]} Bc8 {[%emt 0:00:39]} 0-1

[Event "III Duchamp Open 2019"]
[Site "Rio de Janeiro"]
[Date "2019.12.11"]
[Round "6.2"]
[White "Cruz, Cristhian"]
[Black "Vazquez, Guillermo"]
[Result "1-0"]
[ECO "E04"]
[WhiteElo "2562"]
[BlackElo "2506"]
[Annotator "ChessBase"]
[PlyCount "133"]
[EventDate "2019.12.07"]
[EventType "swiss"]
[EventCountry "BRA"]
[SourceTitle "playchess.com"]
[Source "ChessBase"]
[SourceQuality "1"]
[TimeControl "40/5400+30:1800+30"]

1. c4 {[%emt 0:03:05]} e6 {[%emt 0:00:06]} 2. Nf3 {[%emt 0:01:21]} d5 {[%emt 0:00:52]} 3. d4 {[%emt 0:00:33]} Nf6 {[%emt 0:00:45]} 4. g3 {[%emt 0:00:41]} dxc4 {[%emt 0:01:42]} 5. Bg2 {[%emt 0:00:29]} Nc6 {[%emt 0:00:20]} 6. Qa4 {[%emt 0:00:14]} Bb4+ {[%emt 0:00:28]} 7. Bd2 {[%emt 0:00:09]} Nd5 {[%emt 0:00:46]} 8. Bxb4 {[%emt 0:03:48]} Ndxb4 {[%emt 0:00:05]} 9. Nc3 {[%emt 0:00:58]} Bd7 {[%emt 0:02:15]} 10. O-O {[%emt 0:01:05]} a5 {[%emt 0:00:48]} 11. Qd1 {[%emt 0:01:45]} O-O {[%emt 0:02:20]} 12. Nd2 {[%emt 0:00:22]} Nxd4 {[%emt 0:08:02]} 13. Bxb7 {[%emt 0:00:35]} Rb8 {[%emt 0:00:43]} 14. Bg2 {[%emt 0:00:10]} Nd5 {[%emt 0:16:16]} 15. Nxc4 {[%emt 0:13:46]} Nxc3 {[%emt 0:00:25]} 16. bxc3 {[%emt 0:00:03]} Bb5 {[%emt 0:00:10]} 17. cxd4 {[%emt 0:00:11]} Bxc4 {[%emt 0:00:06]} 18. Qc2 {[%emt 0:01:22]} Rb4 {[%emt 0:08:01]} 19. a3 {[%emt 0:05:33]} Bb3 {[%emt 0:00:58]} 20. Qd3 {[%emt 0:00:58]} Rb6 {[%emt 0:08:45]} 21. Rac1 {[%emt 0:03:07]} Bd5 {[%emt 0:07:53]} 22. Bxd5 {[%emt 0:06:31]} Qxd5 {[%emt 0:02:22]} 23. Rxc7 {[%emt 0:01:45]} Rb3 {[%emt 0:01:11]} 24. Rc3 {[%emt 0:00:30]} a4 {[%emt 0:01:17]} 25. Rfc1 {[%emt 0:07:14]} g6 {[%emt 0:05:27]} 26. Rxb3 {[%emt 0:04:39]} axb3 {[%emt 0:00:53]} 27. Rc5 {[%emt 0:00:45]} Qd6 {[%emt 0:01:08]} 28. Qxb3 {[%emt 0:01:28]} Qxd4 {[%emt 0:00:04]} 29. Qc4 {[%emt 0:02:10]} Qa1+ {[%emt 0:02:50]} 30. Qc1 {[%emt 0:00:11]} Qa2 {[%emt 0:00:33]} 31. Rc2 {[%emt 0:01:31]} Qb3 {[%emt 0:03:14]} 32. Rc8 {[%emt 0:03:10]} Rxc8 {[%emt 0:00:38]} 33. Qxc8+ {[%emt 0:00:06]} Kg7 {[%emt 0:00:03]} 34. Qa6 {[%emt 0:05:47]} Qd1+ {[%emt 0:04:58]} 35. Kg2 {[%emt 0:00:27]} Qd5+ {[%emt 0:00:07]} 36. f3 {[%emt 0:00:51]} e5 {[%emt 0:00:13]} 37. Qd3 {[%emt 0:02:49]} Qa2 {[%emt 0:01:18]} 38. Kf2 {[%emt 0:06:50]} Qa1 {[%emt 0:01:28]} 39. Qd6 {[%emt 0:01:15]} g5 {[%emt 0:09:08]} 40. Kg2 {[%emt 0:07:03]} h6 {[%emt 0:05:42]} 41. Qa6 {[%emt 0:38:06]} Qb1 {[%emt 0:34:52]} 42. Qc4 {[%emt 0:00:43]} h5 {[%emt 0:00:00]} 43. a4 {[%emt 0:00:00]} Qa1 {[%emt 0:00:00]} 44. h4 {[%emt 0:00:00]} gxh4 {[%emt 0:00:00]} 45. Qxh4 {[%emt 0:00:00]} f6 {[%emt 0:00:00]} 46. Qc4 {[%emt 0:00:00]} Qe1 {[%emt 0:00:00]} 47. Qb5 {[%emt 0:00:00]} h4 {[%emt 0:00:00]} 48. gxh4 {[%emt 0:00:00]} Qxh4 {[%emt 0:00:00]} 49. a5 {[%emt 0:00:00]} Qg5+ {[%emt 0:00:00]} 50. Kf1 {[%emt 0:00:00]} Qh4 {[%emt 0:00:00]} 51. Qd7+ {[%emt 0:00:00]} Kh6 {[%emt 0:00:00]} 52. Qg4 {[%emt 0:00:00]} Qh1+ {[%emt 0:00:00]} 53. Kf2 {[%emt 0:00:00]} Qa1 {[%emt 0:00:00]} 54. Qb4 {[%emt 0:00:23]} Kg6 {[%emt 0:00:00]} 55. Kg2 {[%emt 0:01:12]} Kg5 {[%emt 0:01:37]} 56. Qb6 {[%emt 0:03:14]} e4 {[%emt 0:01:48]} 57. Qe3+ {[%emt 0:00:42]} Kh5 {[%emt 0:00:08]} 58. Qc5+ {[%emt 0:00:06]} Kg6 {[%emt 0:00:52]} 59. fxe4 {[%emt 0:00:17]} Qa4 {[%emt 0:02:31]} 60. Qd5 {[%emt 0:02:15]} Qa1 {[%emt 0:00:30]} 61. Qb5 {[%emt 0:00:57]} Kh6 {[%emt 0:00:18]} 62. a6 {[%emt 0:00:24]} Qa2 {[%emt 0:00:13]} 63. Kf2 {[%emt 0:01:04]} Qd2 {[%emt 0:00:11]} 64. Qd3 {[%emt 0:01:20]} Qa5 {[%emt 0:00:45]} 65. Qe3+ {[%emt 0:00:18]} Kg6 {[%emt 0:00:14]} 66. a7 {[%emt 0:00:22]} Qa4 {[%emt 0:01:31]} 67. e5 {[%emt 0:02:37]} 1-0

[Event "III Duchamp Open 2019"]
[Site "Rio de Janeiro"]
[Date "2019.12.11"]
[Round "6.3"]
[White "Supi, Luis Paulo"]
[Black "Gauche, Charles"]
[Result "1-0"]
[ECO "A20"]
[WhiteElo "2578"]
[BlackElo "2248"]
[Annotator "ChessBase"]
[PlyCount "75"]
[EventDate "2019.12.07"]
[EventType "swiss"]
[EventCountry "BRA"]
[SourceTitle "playchess.com"]
[Source "ChessBase"]
[SourceQuality "1"]
[TimeControl "40/5400+30:1800+30"]

1. c4 {[%emt 0:00:00]} e5 {[%emt 0:11:31]} 2. g3 {[%emt 0:00:00]} Nf6 {[%emt 0:00:15]} 3. Bg2 {[%emt 0:00:00]} Nc6 {[%emt 0:00:28]} 4. Nf3 {[%emt 0:01:23]} d5 {[%emt 0:01:45]} 5. cxd5 {[%emt 0:00:05]} Nxd5 {[%emt 0:00:05]} 6. O-O {[%emt 0:00:05]} Nb6 {[%emt 0:00:14]} 7. d3 {[%emt 0:00:26]} Be7 {[%emt 0:01:03]} 8. a3 {[%emt 0:00:04]} a5 {[%emt 0:00:30]} 9. Nc3 {[%emt 0:00:50]} O-O {[%emt 0:01:38]} 10. Be3 {[%emt 0:00:32]} Be6 {[%emt 0:01:56]} 11. Rc1 {[%emt 0:02:33]} Nd5 {[%emt 0:01:12]} 12. Nxd5 {[%emt 0:00:23]} Bxd5 {[%emt 0:00:13]} 13. Qa4 {[%emt 0:00:25]} Bf6 {[%emt 0:07:34]} 14. Rc5 {[%emt 0:13:45]} Ra6 {[%emt 0:23:47]} 15. Rfc1 {[%emt 0:01:27]} Be6 {[%emt 0:02:09]} 16. Nd2 {[%emt 0:11:30]} Bd7 {[%emt 0:00:33]} 17. Qd1 {[%emt 0:04:57]} Be7 {[%emt 0:05:36]} 18. R5c3 {[%emt 0:03:09]} a4 {[%emt 0:05:24]} 19. Bc5 {[%emt 0:04:24]} Bd6 {[%emt 0:00:24]} 20. e3 {[%emt 0:12:58]} Qe7 {[%emt 0:02:14]} 21. Bxd6 {[%emt 0:02:51]} cxd6 {[%emt 0:00:33]} 22. b4 {[%emt 0:01:43]} axb3 {[%emt 0:01:40]} 23. Qxb3 {[%emt 0:00:23]} Ra7 {[%emt 0:00:41]} 24. Qb2 {[%emt 0:04:24]} h6 {[%emt 0:05:35]} 25. Nc4 {[%emt 0:01:28]} Rd8 {[%emt 0:05:00]} 26. Nb6 {[%emt 0:00:51]} Be6 {[%emt 0:00:12]} 27. Nd5 {[%emt 0:01:35]} Qd7 {[%emt 0:01:17]} 28. Rb3 {[%emt 0:02:09]} f5 {[%emt 0:01:45]} 29. Rb1 {[%emt 0:05:35]} Rb8 {[%emt 0:00:49]} 30. Rb5 {[%emt 0:03:11]} Qf7 {[%emt 0:00:42]} 31. Nc3 {[%emt 0:01:49]} Nd8 {[%emt 0:02:53]} 32. Rb6 {[%emt 0:03:11]} Qc7 {[%emt 0:02:55]} 33. Nd5 {[%emt 0:01:15]} Qc5 {[%emt 0:00:34]} 34. Ra1 {[%emt 0:02:37]} Ra4 {[%emt 0:04:03]} 35. h3 {[%emt 0:05:07]} Rba8 {[%emt 0:00:22]} 36. Rb5 {[%emt 0:00:49]} Qa7 {[%emt 0:00:43]} 37. Nb6 {[%emt 0:00:29]} Rxa3 {[%emt 0:00:11]} 38. Rxa3 {[%emt 0:00:01]} 1-0

[Event "III Duchamp Open 2019"]
[Site "Rio de Janeiro"]
[Date "2019.12.11"]
[Round "6.4"]
[White "Hernandez Guerrero, Gilberto"]
[Black "Cezila Jr, Rubens"]
[Result "1-0"]
[ECO "C84"]
[WhiteElo "2554"]
[BlackElo "2191"]
[Annotator "ChessBase"]
[PlyCount "149"]
[EventDate "2019.12.07"]
[EventType "swiss"]
[EventCountry "BRA"]
[SourceTitle "playchess.com"]
[Source "ChessBase"]
[SourceQuality "1"]
[TimeControl "40/5400+30:1800+30"]

1. e4 {[%emt 0:00:00]} e5 {[%emt 0:00:00]} 2. Nf3 {[%emt 0:00:00]} Nc6 {[%emt 0:00:00]} 3. Bb5 {[%emt 0:00:13]} a6 {[%emt 0:00:05]} 4. Ba4 {[%emt 0:00:07]} Nf6 {[%emt 0:00:07]} 5. O-O {[%emt 0:00:24]} Be7 {[%emt 0:00:24]} 6. d3 {[%emt 0:00:30]} b5 {[%emt 0:00:55]} 7. Bb3 {[%emt 0:00:06]} d6 {[%emt 0:00:04]} 8. c3 {[%emt 0:00:05]} O-O {[%emt 0:00:09]} 9. Nbd2 {[%emt 0:00:12]} Na5 {[%emt 0:00:31]} 10. Bc2 {[%emt 0:00:07]} c5 {[%emt 0:00:03]} 11. Re1 {[%emt 0:00:05]} Re8 {[%emt 0:00:47]} 12. Nf1 {[%emt 0:00:19]} Bf8 {[%emt 0:00:39]} 13. Bg5 {[%emt 0:01:39]} h6 {[%emt 0:07:13]} 14. Bh4 {[%emt 0:00:23]} Nc6 {[%emt 0:00:27]} 15. Ne3 {[%emt 0:03:43]} g6 {[%emt 0:09:39]} 16. a4 {[%emt 0:04:36]} Rb8 {[%emt 0:01:22]} 17. axb5 {[%emt 0:05:40]} axb5 {[%emt 0:00:04]} 18. Bb3 {[%emt 0:00:16]} Bg7 {[%emt 0:01:09]} 19. Qc2 {[%emt 0:15:54]} Be6 {[%emt 0:09:36]} 20. Bxf6 {[%emt 0:03:05]} Bxf6 {[%emt 0:03:48]} 21. Ra6 {[%emt 0:01:20]} Qc8 {[%emt 0:03:13]} 22. Rea1 {[%emt 0:02:06]} Bd7 {[%emt 0:04:28]} 23. Nd5 {[%emt 0:05:10]} Bd8 {[%emt 0:00:33]} 24. h3 {[%emt 0:04:35]} Kg7 {[%emt 0:00:22]} 25. Qe2 {[%emt 0:00:12]} Rf8 {[%emt 0:03:15]} 26. Nd2 {[%emt 0:02:08]} Be6 {[%emt 0:03:41]} 27. Ne3 {[%emt 0:01:36]} Bd7 {[%emt 0:00:39]} 28. Nd5 {[%emt 0:01:34]} Be6 {[%emt 0:00:17]} 29. f4 {[%emt 0:07:19]} exf4 {[%emt 0:00:55]} 30. Nxf4 {[%emt 0:00:17]} Bxb3 {[%emt 0:00:04]} 31. Nxb3 {[%emt 0:00:09]} Bf6 {[%emt 0:00:16]} 32. Nd5 {[%emt 0:05:30]} Be5 {[%emt 0:00:32]} 33. Nd2 {[%emt 0:01:30]} b4 {[%emt 0:03:49]} 34. Nc4 {[%emt 0:01:13]} bxc3 {[%emt 0:00:19]} 35. bxc3 {[%emt 0:01:11]} Rb1+ {[%emt 0:00:31]} 36. Rxb1 {[%emt 0:01:35]} Qxa6 {[%emt 0:00:04]} 37. g4 {[%emt 0:10:26]} Qc8 {[%emt 0:08:30]} 38. Rb6 {[%emt 0:03:31]} h5 {[%emt 0:06:47]} 39. Qf2 {[%emt 0:08:39]} f6 {[%emt 0:01:15]} 40. gxh5 {[%emt 0:02:56]} Qxh3 {[%emt 0:03:20]} 41. Rb7+ {[%emt 0:37:55]} Kh8 {[%emt 0:34:40]} 42. hxg6 {[%emt 0:01:42]} Qg4+ {[%emt 0:00:05]} 43. Qg2 {[%emt 0:00:41]} Qd1+ {[%emt 0:00:05]} 44. Kf2 {[%emt 0:00:00]} Qc2+ {[%emt 0:00:00]} 45. Kf3 {[%emt 0:00:00]} Qd1+ {[%emt 0:00:00]} 46. Ke3 {[%emt 0:00:00]} Qe1+ {[%emt 0:00:00]} 47. Qe2 {[%emt 0:00:00]} Qg3+ {[%emt 0:00:00]} 48. Qf3 {[%emt 0:00:00]} Qe1+ {[%emt 0:00:00]} 49. Qe2 {[%emt 0:00:00]} Qg3+ {[%emt 0:00:00]} 50. Kd2 {[%emt 0:00:00]} Qxg6 {[%emt 0:00:00]} 51. Kc2 {[%emt 0:00:00]} Rf7 {[%emt 0:00:00]} 52. Rb6 {[%emt 0:00:00]} Nd8 {[%emt 0:00:00]} 53. Nxd6 {[%emt 0:00:00]} Rh7 {[%emt 0:00:00]} 54. Kb3 {[%emt 0:00:00]} Rh2 {[%emt 0:00:00]} 55. Qf1 {[%emt 0:00:00]} Rh7 {[%emt 0:22:26]} 56. Nc4 {[%emt 0:00:00]} Rb7 {[%emt 0:00:33]} 57. Nxe5 {[%emt 0:00:00]} Rxb6+ {[%emt 0:00:12]} 58. Nxb6 {[%emt 0:00:00]} fxe5 {[%emt 0:00:02]} 59. Qf8+ {[%emt 0:00:00]} Qg8+ {[%emt 0:00:04]} 60. Qxg8+ {[%emt 0:00:00]} Kxg8 {[%emt 0:00:03]} 61. Nd7 {[%emt 0:00:00]} Kf7 {[%emt 0:00:33]} 62. Kc4 {[%emt 0:00:36]} Ke6 {[%emt 0:00:16]} 63. Nxc5+ {[%emt 0:00:06]} Kd6 {[%emt 0:00:03]} 64. Kb5 {[%emt 0:00:14]} Nf7 {[%emt 0:00:15]} 65. Nb7+ {[%emt 0:00:21]} Kc7 {[%emt 0:00:09]} 66. Na5 {[%emt 0:00:09]} Kd6 {[%emt 0:00:02]} 67. Nc4+ {[%emt 0:00:10]} Ke6 {[%emt 0:00:05]} 68. Kc6 {[%emt 0:00:54]} Ng5 {[%emt 0:00:22]} 69. Nd2 {[%emt 0:01:52]} Nf7 {[%emt 0:00:21]} 70. Nb3 {[%emt 0:00:29]} Nd8+ {[%emt 0:00:13]} 71. Kc7 {[%emt 0:00:13]} Ke7 {[%emt 0:00:05]} 72. Nc5 {[%emt 0:00:11]} Nf7 {[%emt 0:00:08]} 73. Kc6 {[%emt 0:00:11]} Ng5 {[%emt 0:00:29]} 74. Kd5 {[%emt 0:00:30]} Nf3 {[%emt 0:00:18]} 75. c4 {[%emt 0:01:03]} 1-0

[Event "III Duchamp Open 2019"]
[Site "Rio de Janeiro"]
[Date "2019.12.11"]
[Round "6.7"]
[White "Perdomo, Leandro"]
[Black "Carraro, Denise"]
[Result "1-0"]
[ECO "E20"]
[WhiteElo "2474"]
[BlackElo "2177"]
[Annotator "RC"]
[PlyCount "47"]
[EventDate "2019.12.07"]
[EventType "swiss"]
[EventCountry "BRA"]
[SourceTitle "playchess.com"]
[Source "ChessBase"]
[SourceQuality "1"]
[TimeControl "40/5400+30:1800+30"]

1. d4 {[%emt 0:00:00]} Nf6 {[%emt 0:00:00]} 2. c4 {[%emt 0:00:00]} e6 {[%emt 0:00:00]} 3. Nc3 {[%emt 0:00:00]} Bb4 {[%emt 0:00:19]} 4. g3 {[%emt 0:01:15]} c5 {[%emt 0:00:16]} 5. Nf3 {[%emt 0:00:02]} cxd4 {[%emt 0:01:01]} 6. Nxd4 {[%emt 0:00:05]} O-O {[%emt 0:00:04]} 7. Bg2 {[%emt 0:00:17]} d5 {[%emt 0:00:28]} 8. Nc2 {[%emt 0:15:37]} Bxc3+ {[%emt 0:04:50]} 9. bxc3 {[%emt 0:00:03]} Qc7 {[%emt 0:07:09]} 10. Ne3 {[%emt 0:03:28]} Rd8 {[%emt 0:08:07]} 11. cxd5 {[%emt 0:08:21]} exd5 {[%emt 0:01:50]} 12. O-O {[%emt 0:01:08]} Be6 {[%emt 0:00:19]} 13. Bb2 {[%emt 0:06:58]} Nc6 {[%emt 0:01:18]} 14. Qa4 {[%emt 0:03:04]} b5 {[%emt 0:05:17]} 15. Qh4 {[%emt 0:06:55]} Rab8 {[%emt 0:06:47]} 16. Rfd1 {[%emt 0:08:11]} Qe5 {[%emt 0:11:52]} 17. Rd2 {[%emt 0:13:47]} Ne4 {[%emt 0:30:29]} 18. c4 {[%emt 0:05:29]} Qc7 {[%emt 0:00:02]} 19. Nxd5 {[%emt 0:13:45]} Bxd5 {[%emt 0:00:34]} 20. Rxd5 {[%emt 0:00:17]} Nd6 {[%emt 0:10:34]} 21. Rc5 {[%emt 0:02:39]} Rb6 {[%emt 0:04:46]} 22. cxb5 {[%emt 0:02:50]} Rxb5 {[%emt 0:03:28]} 23. Rxb5 {[%emt 0:00:49]} Nxb5 {[%emt 0:00:05]} 24. Bxc6 {[%emt 0:00:05]} 1-0

[Event "III Duchamp Open 2019"]
[Site "Rio de Janeiro"]
[Date "2019.12.11"]
[Round "6.8"]
[White "Fernandez, Maria Florencia"]
[Black "Ambartsumova, Karina"]
[Result "1/2-1/2"]
[ECO "D35"]
[WhiteElo "2241"]
[BlackElo "2341"]
[Annotator "NA"]
[PlyCount "108"]
[EventDate "2019.12.07"]
[EventType "swiss"]
[EventCountry "BRA"]
[SourceTitle "playchess.com"]
[Source "ChessBase"]
[SourceQuality "1"]
[TimeControl "40/5400+30:1800+30"]

1. d4 {[%emt 0:02:11]} Nf6 {[%emt 0:00:12]} 2. c4 {[%emt 0:00:10]} e6 {[%emt 0:00:45]} 3. Nc3 {[%emt 0:00:14]} d5 {[%emt 0:00:10]} 4. cxd5 {[%emt 0:00:30]} exd5 {[%emt 0:00:12]} 5. Bg5 {[%emt 0:00:05]} c6 {[%emt 0:01:17]} 6. e3 {[%emt 0:00:16]} Be7 {[%emt 0:01:05]} 7. Bd3 {[%emt 0:00:28]} Nbd7 {[%emt 0:03:50]} 8. Qc2 {[%emt 0:00:51]} h6 {[%emt 0:00:15]} 9. Bh4 {[%emt 0:00:14]} Nh5 {[%emt 0:00:26]} 10. Bxe7 {[%emt 0:00:23]} Qxe7 {[%emt 0:00:06]} 11. Nge2 {[%emt 0:01:16]} Nb6 {[%emt 0:07:45]} 12. O-O-O {[%emt 0:02:09]} Bd7 {[%emt 0:02:06]} 13. Kb1 {[%emt 0:01:53]} O-O-O {[%emt 0:01:38]} 14. Na4 {[%emt 0:11:21]} Nxa4 {[%emt 0:04:35]} 15. Qxa4 {[%emt 0:00:06]} Kb8 {[%emt 0:01:55]} 16. Rc1 {[%emt 0:06:49]} Qg5 {[%emt 0:12:51]} 17. Ng3 Nxg3 {[%emt 0:03:45]} 18. hxg3 {[%emt 0:25:41]} c5 {[%emt 0:05:45]} 19. Qa5 {[%emt 0:07:30]} Bf5 {[%emt 0:10:16]} 20. Qc3 {[%emt 0:16:24]} c4 {[%emt 0:09:25]} 21. Bxf5 {[%emt 0:00:05]} Qxf5+ {[%emt 0:00:03]} 22. Rc2 {[%emt 0:00:09]} h5 {[%emt 0:04:12]} 23. Ka1 {[%emt 0:02:19]} Rc8 {[%emt 0:04:13]} 24. Rhc1 {[%emt 0:05:00]} Rc6 {[%emt 0:07:18]} 25. Qe1 {[%emt 0:02:08]} Rhc8 {[%emt 0:05:12]} 26. f3 {[%emt 0:00:20]} Re8 {[%emt 0:01:10]} 27. b3 {[%emt 0:05:08]} Rce6 {[%emt 0:07:39]} 28. bxc4 {[%emt 0:01:23]} Rxe3 {[%emt 0:00:18]} 29. Qb4 {[%emt 0:04:26]} dxc4 {[%emt 0:03:23]} 30. Rxc4 {[%emt 0:00:42]} Qd7 {[%emt 0:00:30]} 31. Rc5 {[%emt 0:01:48]} Rd3 {[%emt 0:02:41]} 32. d5 {[%emt 0:02:18]} Rxd5 {[%emt 0:00:11]} 33. Qf4+ {[%emt 0:00:01]} Ka8 {[%emt 0:00:06]} 34. Rc7 {[%emt 0:01:49]} Qe6 {[%emt 0:00:26]} 35. Rxf7 g5 {[%emt 0:00:54]} 36. Qf6 {[%emt 0:01:15]} Qxf6+ {[%emt 0:00:31]} 37. Rxf6 {[%emt 0:00:01]} Rd2 {[%emt 0:00:41]} 38. Re6 {[%emt 0:00:06]} Red8 {[%emt 0:00:28]} 39. Rg6 {[%emt 0:00:34]} Rxg2 {[%emt 0:00:32]} 40. Rxg5 {[%emt 0:00:04]} a6 {[%emt 0:00:23]} 41. Rf1 {[%emt 0:06:20]} Rdd2 {[%emt 0:03:53]} 42. f4 {[%emt 0:01:09]} Rxa2+ {[%emt 0:02:46]} 43. Kb1 {[%emt 0:00:01]} Rgb2+ {[%emt 0:15:37]} 44. Kc1 {[%emt 0:00:06]} Rc2+ {[%emt 0:00:40]} 45. Kb1 {[%emt 0:00:34]} Rcb2+ {[%emt 0:02:23]} 46. Kc1 {[%emt 0:00:02]} Rg2 {[%emt 0:04:07]} 47. Kb1 {[%emt 0:00:32]} Ra3 {[%emt 0:00:56]} 48. Rxh5 {[%emt 0:04:58]} Raxg3 {[%emt 0:00:35]} 49. Rhh1 {[%emt 0:01:24]} a5 {[%emt 0:02:24]} 50. f5 {[%emt 0:00:07]} Rb3+ {[%emt 0:01:28]} 51. Ka1 {[%emt 0:00:26]} Ra3+ {[%emt 0:00:35]} 52. Kb1 {[%emt 0:00:05]} Rb3+ {[%emt 0:00:42]} 53. Ka1 {[%emt 0:00:04]} Ra3+ {[%emt 0:00:28]} 54. Kb1 {[%emt 0:01:09]} Rb3+ {[%emt 0:00:31] Kb2} 1/2-1/2